bitfinex/quotes_BTCUSD_20241128
["timestamp","ask_amount","ask_price","bid_price","bid_amount"]
[1732811085943,0.104985,95252.0,95247.0,0.11155741]
[1732811086166,0.209966,95254.0,95248.0,0.00656741]
[1732811086405,0.209966,95254.0,95242.0,0.0047236]
[1732811086406,0.0099775,95262.0,95250.0,0.104986]
[1732811086650,0.00186438,95272.0,95262.0,0.104973]
[1732811086876,0.00186438,95272.0,95250.0,0.10284521]
[1732811086877,0.0098314,95270.0,95263.0,0.00656741]
[1732811087095,0.00186438,95269.0,95264.0,0.00656596]
[1732811087329,0.209899,95284.0,95246.0,0.09581186]
[1732811087330,0.209909,95279.0,95246.0,0.09581186]
[1732811087563,0.10499,95247.0,95246.0,0.01473847]
[1732811087791,0.10499,95247.0,95246.0,0.02130525]
[1732811088000,0.209965,95254.0,95246.0,0.02130525]
[1732811088218,0.209969,95252.0,95247.0,0.00656678]
[1732811088453,0.209969,95252.0,95248.0,0.00656678]
[1732811088454,0.104988,95249.0,95248.0,0.00656678]
[1732811088683,0.10685038,95251.0,95246.0,0.01273847]
[1732811088893,0.104984,95252.0,95246.0,0.10499]
[1732811089095,0.104984,95252.0,95247.0,0.104989]
[1732811089548,0.104984,95252.0,95247.0,0.105989]
[1732811089760,0.104986,95251.0,95248.0,0.00656693]
[1732811089966,0.00286438,95254.0,95249.0,0.00656693]
[1732811089967,0.001,95254.0,95249.0,0.00656693]
[1732811090174,0.001,95254.0,95250.0,0.00656693]
[1732811090175,0.00286438,95254.0,95250.0,0.00656693]
[1732811090409,0.105983,95254.0,95251.0,0.00656693]
[1732811090624,0.209942,95264.0,95252.0,0.00656693]
[1732811090837,0.209942,95264.0,95253.0,0.00656693]
[1732811090838,0.023,95263.0,95253.0,0.00656693]
[1732811091046,0.023,95263.0,95249.0,0.104987]
[1732811091261,0.10498,95257.0,95251.0,0.104984]
[1732811091464,0.104976,95259.0,95252.0,0.00656688]
[1732811091715,0.10498,95256.0,95251.0,0.108985]
[1732811091920,0.00186438,95258.0,95251.0,0.004]
[1732811092151,0.00186438,95258.0,95236.0,0.14360939]
[1732811092355,0.10498,95256.0,95250.0,0.104986]
[1732811092808,0.00186438,95258.0,95254.0,0.209964]
[1732811093047,0.209921,95274.0,95254.0,0.209964]
[1732811093048,0.104973,95262.0,95254.0,0.209964]
[1732811093254,0.104973,95262.0,95252.0,0.209969]
[1732811093685,0.0099895,95270.0,95250.0,0.002]
[1732811093892,0.0099895,95270.0,95258.0,0.104977]
[1732811093893,0.104971,95264.0,95258.0,0.104977]
[1732811094108,0.21179638,95269.0,95250.0,0.10484521]
[1732811094109,0.209934,95268.0,95251.0,0.002]
[1732811094330,0.209934,95268.0,95258.0,0.104977]
[1732811094331,0.104972,95263.0,95258.0,0.104977]
[1732811095401,0.104972,95263.0,95256.0,0.209959]
[1732811095402,0.20992,95274.0,95257.0,0.104978]
[1732811095659,0.20992,95274.0,95256.0,0.209959]
[1732811095660,0.104971,95265.0,95259.0,0.104976]
[1732811095874,0.104972,95264.0,95259.0,0.104976]
[1732811096310,0.104973,95263.0,95258.0,0.003]
[1732811096526,0.104973,95263.0,95258.0,0.107976]
[1732811096727,0.104973,95263.0,95258.0,0.104976]
[1732811096929,0.105973,95263.0,95259.0,0.003]
[1732811097382,0.001,95263.0,95259.0,0.003]
[1732811097814,0.104973,95263.0,95259.0,0.107976]
[1732811098209,0.105973,95263.0,95259.0,0.112976]
[1732811098455,0.104974,95261.0,95259.0,0.005]
[1732811098663,0.104975,95260.0,95259.0,0.005]
[1732811098868,0.001,95263.0,95259.0,0.005]
[1732811099280,0.105972,95263.0,95259.0,0.005]
[1732811099545,0.105972,95263.0,95259.0,0.008]
[1732811099958,0.105973,95263.0,95259.0,0.008]
[1732811100170,0.105973,95263.0,95259.0,0.003]
[1732811100171,0.104973,95263.0,95259.0,0.003]
[1732811100384,0.00186438,95265.0,95259.0,0.003]
[1732811100616,0.105974,95261.0,95259.0,0.008]
[1732811100854,0.209939,95266.0,95259.0,0.003]
[1732811101099,0.104973,95263.0,95259.0,0.003]
[1732811101316,0.001,95263.0,95259.0,0.008]
[1732811101534,0.00186438,95265.0,95257.0,0.01278702]
[1732811101535,0.00186438,95265.0,95257.0,0.11776502]
[1732811101766,0.104972,95263.0,95257.0,0.11776502]
[1732811101989,0.104972,95263.0,95259.0,0.007]
[1732811102447,0.104972,95263.0,95259.0,0.004]
[1732811103122,0.00186438,95266.0,95259.0,0.104976]
[1732811103123,0.104971,95265.0,95259.0,0.104976]
[1732811103429,0.209916,95276.0,95257.0,0.01578702]
[1732811103430,0.0472,95281.0,95257.0,0.01278702]
[1732811103635,0.104957,95277.0,95260.0,0.1524476]
[1732811103841,0.0785,95290.0,95263.0,0.104972]
[1732811103842,0.209903,95282.0,95263.0,0.104972]
[1732811104105,0.0785,95290.0,95263.0,0.104972]
[1732811104106,0.00186438,95277.0,95263.0,0.209945]
[1732811104324,0.0785,95290.0,95264.0,0.10497]
[1732811104325,0.00186438,95289.0,95264.0,0.10497]
[1732811104548,0.00186438,95289.0,95261.0,0.10284521]
[1732811104549,0.00186438,95289.0,95262.0,0.209947]
[1732811104779,0.003,95278.0,95264.0,0.10497]
[1732811104990,0.104963,95272.0,95267.0,0.104967]
[1732811105204,0.00186438,95279.0,95262.0,0.10284521]
[1732811105409,0.023,95287.0,95262.0,0.10284521]
[1732811105410,0.00186438,95286.0,95265.0,0.10497]
[1732811105619,0.104966,95269.0,95265.0,0.10497]
[1732811105842,0.104964,95271.0,95266.0,0.104968]
[1732811106071,0.104964,95271.0,95267.0,0.104968]
[1732811106295,0.104967,95268.0,95264.0,0.10497]
[1732811106516,0.104966,95269.0,95265.0,0.00656545]
[1732811106738,0.209896,95285.0,95266.0,0.00656545]
[1732811106945,0.104965,95270.0,95267.0,0.00656545]
[1732811107201,0.104965,95270.0,95268.0,0.00656545]
[1732811107442,0.104965,95269.0,95266.0,0.00656545]
[1732811107684,0.023,95271.0,95251.0,0.15]
[1732811107897,0.023,95271.0,95258.0,0.00656599]
[1732811108122,0.210741,95293.0,95269.0,0.209931]
[1732811108123,0.0801,95281.0,95269.0,0.209931]
[1732811108336,0.001,95286.0,95268.0,0.0795]
[1732811108545,0.009958,95278.0,95277.0,0.104957]
[1732811108784,0.10495,95283.0,95277.0,0.104957]
[1732811108998,0.232888,95289.0,95268.0,0.0795]
[1732811108999,0.232892,95287.0,95268.0,0.0795]
[1732811109210,0.023,95289.0,95269.0,0.00656513]
[1732811109424,0.023,95289.0,95270.0,0.00656513]
[1732811109425,0.20989,95288.0,95270.0,0.00656513]
[1732811109635,0.10495,95283.0,95278.0,0.104955]
[1732811109855,0.104949,95284.0,95280.0,0.104952]
[1732811110067,0.001,95286.0,95268.0,0.0795]
[1732811110317,0.023,95289.0,95276.0,0.104957]
[1732811110559,0.209896,95285.0,95277.0,0.00656511]
[1732811110762,0.007,95289.0,95269.0,0.001]
[1732811111032,0.007,95289.0,95284.0,0.104949]
[1732811111033,0.106944,95289.0,95284.0,0.104949]
[1732811111237,0.002,95289.0,95284.0,0.104949]
[1732811111452,0.002,95289.0,95282.0,0.314853]
[1732811111453,0.104945,95288.0,95282.0,0.314853]
[1732811111658,0.211889,95289.0,95283.0,0.0065646]
[1732811111877,0.104946,95287.0,95282.0,0.104951]
[1732811112103,0.104946,95287.0,95283.0,0.0065646]
[1732811112324,0.104947,95286.0,95284.0,0.0065646]
[1732811112552,0.21175438,95288.0,95278.0,0.20991]
[1732811112772,0.104948,95285.0,95281.0,0.104952]
[1732811112985,0.104948,95285.0,95282.0,0.0065646]
[1732811113206,0.104948,95285.0,95283.0,0.0065646]
[1732811113415,0.104948,95285.0,95284.0,0.0065646]
[1732811114054,0.001,95288.0,95278.0,0.01281685]
[1732811114285,0.104954,95279.0,95278.0,0.01281685]
[1732811114489,0.00186438,95287.0,95278.0,0.00656476]
[1732811114706,0.104953,95281.0,95279.0,0.00656476]
[1732811114923,0.104953,95281.0,95280.0,0.00656476]
[1732811116253,0.104953,95281.0,95280.0,0.00856476]
[1732811116981,0.18411738,95281.0,95280.0,0.002]
[1732811117669,0.18411738,95281.0,95280.0,0.004]
[1732811117897,0.18411738,95281.0,95280.0,0.002]
[1732811118124,0.104967,95268.0,95267.0,0.01234482]
[1732811118568,0.0773,95281.0,95253.0,0.209966]
[1732811118795,0.0773,95281.0,95260.0,0.209951]
[1732811118796,0.104968,95267.0,95260.0,0.209951]
[1732811119024,0.00186438,95280.0,95259.0,0.01367075]
[1732811119025,0.10497,95265.0,95259.0,0.01367075]
[1732811119248,0.104971,95264.0,95260.0,0.104975]
[1732811119469,0.104969,95266.0,95260.0,0.104975]
[1732811119912,0.209936,95267.0,95260.0,0.104975]
[1732811120120,0.0099157,95279.0,95260.0,0.004]
[1732811120382,0.104973,95262.0,95260.0,0.004]
[1732811120599,0.419824,95278.0,95260.0,0.004]
[1732811120807,0.0099157,95279.0,95261.0,0.10284521]
[1732811121041,0.0099157,95279.0,95271.0,0.104963]
[1732811121249,0.104963,95272.0,95262.0,0.209947]
[1732811121456,0.104963,95272.0,95267.0,0.104967]
[1732811121894,0.209914,95277.0,95263.0,0.10284521]
[1732811122572,0.209907,95280.0,95265.0,0.20994]
[1732811122800,0.0098484,95282.0,95276.0,0.104957]
[1732811123016,0.0098484,95282.0,95266.0,0.10284521]
[1732811123220,0.00186438,95283.0,95273.0,0.104961]
[1732811123427,0.209903,95282.0,95273.0,0.104961]
[1732811123665,0.209896,95285.0,95266.0,0.10284521]
[1732811123912,0.00186438,95284.0,95266.0,0.10284521]
[1732811124121,0.209901,95283.0,95269.0,0.209931]
[1732811124342,0.0099802,95286.0,95275.0,0.104958]
[1732811124580,0.104955,95279.0,95275.0,0.104958]
[1732811124791,0.104956,95278.0,95276.0,0.00656511]
[1732811125009,0.104956,95278.0,95277.0,0.00656511]
[1732811126394,0.104956,95278.0,95277.0,0.00956511]
[1732811126395,0.10682038,95278.0,95277.0,0.00956511]
[1732811126597,0.23652038,95278.0,95277.0,0.003]
[1732811126812,0.234656,95278.0,95277.0,0.003]
[1732811127495,0.23459771,95278.0,95277.0,0.004]
[1732811127702,0.23431039,95278.0,95277.0,0.001]
[1732811128156,0.23431039,95278.0,95277.0,0.002]
[1732811128796,0.10461039,95278.0,95277.0,0.002]
[1732811129029,0.10461039,95278.0,95277.0,0.00856542]
[1732811129235,0.209909,95280.0,95277.0,0.00856542]
[1732811129448,0.104955,95279.0,95277.0,0.002]
[1732811129676,0.104955,95279.0,95278.0,0.00656481]
[1732811130623,0.104954,95280.0,95278.0,0.00656481]
[1732811130845,0.00186438,95290.0,95279.0,0.00656481]
[1732811131059,0.104953,95280.0,95277.0,0.09413009]
[1732811131270,0.00186438,95290.0,95278.0,0.00656456]
[1732811131484,0.209887,95289.0,95279.0,0.00656456]
[1732811131688,0.00186438,95288.0,95278.0,0.09413009]
[1732811131908,0.00186438,95288.0,95279.0,0.00656453]
[1732811132129,0.209896,95285.0,95280.0,0.00656453]
[1732811132368,0.209896,95285.0,95278.0,0.09413009]
[1732811132369,0.00186438,95284.0,95278.0,0.09413009]
[1732811132592,0.00186438,95284.0,95279.0,0.00656451]
[1732811132804,0.209896,95285.0,95278.0,0.09413009]
[1732811132805,0.104942,95290.0,95283.0,0.104949]
[1732811133035,0.104946,95287.0,95281.0,0.209904]
[1732811133275,0.104946,95287.0,95282.0,0.11151551]
[1732811133488,0.046,95306.0,95283.0,0.00656451]
[1732811133714,0.104938,95294.0,95285.0,0.314844]
[1732811133922,0.104938,95294.0,95284.0,0.00656451]
[1732811133923,0.104938,95294.0,95289.0,0.104943]
[1732811134154,0.10494,95292.0,95290.0,0.00656451]
[1732811134371,0.209861,95301.0,95282.0,0.09413009]
[1732811134372,0.00186438,95296.0,95282.0,0.09413009]
[1732811134581,0.076,95290.0,95279.0,0.09413009]
[1732811134789,0.104951,95282.0,95278.0,0.20008509]
[1732811134998,0.076,95290.0,95278.0,0.20008509]
[1732811134999,0.00186438,95287.0,95278.0,0.09413009]
[1732811135205,0.104951,95283.0,95278.0,0.09413009]
[1732811135427,0.104951,95283.0,95278.0,0.19908509]
[1732811135652,0.210881,95292.0,95278.0,0.09413009]
[1732811135653,0.214881,95292.0,95278.0,0.09413009]
[1732811135848,0.104947,95286.0,95279.0,0.10069455]
[1732811136093,0.104947,95286.0,95280.0,0.21647146]
[1732811136348,0.104945,95288.0,95282.0,0.10495]
[1732811136570,0.104946,95287.0,95283.0,0.00656446]
[1732811136780,0.104945,95288.0,95284.0,0.00656446]
[1732811136992,0.104945,95288.0,95283.0,0.10495]
[1732811136993,0.209883,95291.0,95285.0,0.00656446]
[1732811137243,0.21174938,95290.0,95286.0,0.00656446]
[1732811137456,0.21174938,95290.0,95280.0,0.09423128]
[1732811137700,0.21174938,95290.0,95281.0,0.11151646]
[1732811137701,0.104948,95286.0,95281.0,0.11151646]
[1732811137907,0.21174938,95290.0,95280.0,0.09423128]
[1732811137908,0.001,95287.0,95282.0,0.00656446]
[1732811138114,0.104947,95286.0,95283.0,0.00656446]
[1732811138341,0.001,95287.0,95284.0,0.00656446]
[1732811138553,0.001,95287.0,95285.0,0.00656446]
[1732811138793,0.104947,95286.0,95280.0,0.19918328]
[1732811138991,0.104947,95286.0,95282.0,0.104951]
[1732811139193,0.104947,95286.0,95283.0,0.00656445]
[1732811139411,0.104947,95286.0,95284.0,0.00656445]
[1732811139639,0.104947,95286.0,95282.0,0.104951]
[1732811139844,0.104947,95286.0,95283.0,0.00656446]
[1732811140065,0.104947,95286.0,95284.0,0.00656446]
[1732811140290,0.104947,95286.0,95285.0,0.00656446]
[1732811142974,0.00186438,95290.0,95285.0,0.00656446]
[1732811143184,0.104942,95291.0,95286.0,0.11151046]
[1732811143407,0.104943,95290.0,95287.0,0.00656444]
[1732811143652,0.000862,95293.0,95292.0,0.10494]
[1732811143853,0.000862,95293.0,95292.0,0.11936309]
[1732811144060,0.000862,95293.0,95292.0,0.01442309]
[1732811144268,0.000862,95293.0,95292.0,0.11936309]
[1732811144897,0.000862,95293.0,95292.0,0.21358707]
[1732811145314,0.000862,95293.0,95292.0,0.12036309]
[1732811145519,0.000862,95293.0,95292.0,0.21460262]
[1732811145733,0.000862,95293.0,95292.0,0.11936309]
[1732811145944,0.000862,95293.0,95292.0,0.12036309]
[1732811146164,0.000862,95293.0,95292.0,0.12236309]
[1732811146404,0.000862,95293.0,95292.0,0.10794]
[1732811146641,0.000862,95293.0,95292.0,0.12235898]
[1732811147078,0.000862,95293.0,95292.0,0.12135898]
[1732811147528,0.000862,95293.0,95292.0,0.12335898]
[1732811147757,0.000862,95293.0,95292.0,0.12235898]
[1732811147976,0.000862,95293.0,95292.0,0.13286116]
[1732811148184,0.000862,95293.0,95292.0,0.15039704]
[1732811148185,0.001862,95293.0,95292.0,0.15039704]
[1732811153162,0.001862,95293.0,95292.0,0.15039738]
[1732811154082,0.001862,95293.0,95292.0,0.25324259]
[1732811154969,0.0107471,95312.0,95311.0,0.104919]
[1732811155200,0.0107471,95312.0,95311.0,0.1298405]
[1732811155468,0.0008621,95312.0,95311.0,0.1298405]
[1732811156420,0.0028621,95312.0,95311.0,0.12983738]
[1732811157078,0.00757574,95312.0,95311.0,0.13083738]
[1732811157307,0.00257574,95312.0,95311.0,0.14256959]
[1732811157525,0.00057574,95312.0,95311.0,0.14256959]
[1732811157751,0.00057574,95312.0,95311.0,0.14656959]
[1732811162048,0.00057574,95312.0,95311.0,0.13871408]
[1732811162493,0.00057574,95312.0,95311.0,0.12165121]
[1732811163550,0.00057574,95312.0,95311.0,0.22449642]
[1732811166790,0.00057574,95312.0,95311.0,0.24811935]
[1732811167062,0.00057574,95312.0,95311.0,0.25468127]
[1732811167276,0.00057574,95312.0,95311.0,0.49887565]
[1732811167477,0.00057574,95312.0,95311.0,0.49866228]
[1732811167706,0.00057574,95312.0,95311.0,0.54597284]
[1732811167913,0.00057574,95312.0,95311.0,0.40268127]
[1732811168123,0.00057574,95312.0,95311.0,0.52488127]
[1732811168421,0.00057574,95312.0,95311.0,0.76980305]
[1732811168422,0.00157574,95312.0,95311.0,0.76980305]
[1732811168645,0.00057574,95312.0,95311.0,0.76176521]
[1732811168849,0.00057574,95312.0,95311.0,0.75976521]
[1732811169085,0.00057574,95312.0,95311.0,0.52488127]
[1732811169297,0.00057574,95312.0,95311.0,0.76976521]
[1732811169537,0.00088285,95312.0,95311.0,0.55388127]
[1732811169976,0.0008621,95333.0,95332.0,0.104896]
[1732811170199,0.0008621,95333.0,95332.0,0.22480221]
[1732811171268,0.0008621,95333.0,95332.0,0.22580221]
[1732811172378,0.0008621,95333.0,95332.0,0.018061]
[1732811172379,0.2323571,95333.0,95332.0,0.018061]
[1732811172813,0.2323571,95333.0,95332.0,0.001]
[1732811172814,0.2553571,95333.0,95332.0,0.001]
[1732811173658,0.2553571,95333.0,95302.0,0.00799135]
[1732811173659,0.0459,95315.0,95302.0,0.00799135]
[1732811173856,0.0459,95315.0,95301.0,0.30375135]
[1732811173857,0.0459,95315.0,95303.0,0.11990757]
[1732811174061,0.0459,95315.0,95304.0,0.01706236]
[1732811174282,0.0459,95315.0,95305.0,0.01706236]
[1732811174509,0.023,95313.0,95294.0,0.104938]
[1732811174750,0.023,95313.0,95292.0,0.00799135]
[1732811174751,0.023,95306.0,95295.0,0.01706396]
[1732811174958,0.185736,95296.0,95288.0,0.09389135]
[1732811175169,0.104937,95295.0,95289.0,0.01706508]
[1732811175383,0.104937,95295.0,95290.0,0.12200708]
[1732811175590,0.0808,95296.0,95291.0,0.01706508]
[1732811175809,0.104938,95295.0,95292.0,0.01706596]
[1732811176083,0.104939,95293.0,95288.0,0.104944]
[1732811176304,0.104939,95293.0,95289.0,0.01050219]
[1732811176510,0.104942,95290.0,95289.0,0.00656386]
[1732811176715,0.0808,95296.0,95289.0,0.02362993]
[1732811176716,0.104941,95292.0,95289.0,0.02362993]
[1732811176928,0.104938,95294.0,95290.0,0.01706607]
[1732811177134,0.104939,95293.0,95291.0,0.01706607]
[1732811177382,0.209876,95294.0,95286.0,0.02599584]
[1732811177601,0.290672,95296.0,95289.0,0.003]
[1732811177602,0.104941,95292.0,95289.0,0.003]
[1732811177832,0.001,95290.0,95289.0,0.009]
[1732811178060,0.001,95290.0,95289.0,0.0170661]
[1732811178714,0.001,95290.0,95289.0,0.00656388]
[1732811178715,0.104942,95290.0,95289.0,0.00656388]
[1732811179120,0.104942,95290.0,95289.0,0.0170661]
[1732811179336,0.104942,95290.0,95289.0,0.00656388]
[1732811179556,0.104942,95290.0,95289.0,0.005]
[1732811179762,0.001,95292.0,95289.0,0.01156394]
[1732811179979,0.001,95292.0,95290.0,0.00656394]
[1732811180195,0.001,95292.0,95291.0,0.00656394]
[1732811180400,0.10594,95292.0,95291.0,0.00656394]
[1732811180821,0.10494,95292.0,95291.0,0.00656394]
[1732811181696,0.10494,95292.0,95291.0,0.01156394]
[1732811183609,0.31224959,95292.0,95291.0,0.005]
[1732811183801,0.31038521,95292.0,95291.0,0.005]
[1732811184025,0.31038521,95292.0,95291.0,0.008]
[1732811184497,0.31038521,95292.0,95290.0,0.0017232]
[1732811184498,0.127941,95291.0,95290.0,0.0017232]
[1732811184726,0.23265059,95291.0,95290.0,0.0017232]
[1732811184944,0.23078621,95291.0,95290.0,0.0017232]
[1732811186272,0.22997762,95291.0,95290.0,0.0017232]
[1732811186493,0.22969073,95291.0,95290.0,0.0017232]
[1732811186696,0.10384552,95291.0,95290.0,0.0017232]
[1732811186916,0.1057099,95291.0,95290.0,0.0017232]
[1732811187363,0.1087099,95291.0,95290.0,0.0017232]
[1732811187863,0.1087099,95291.0,95290.0,0.0027232]
[1732811188063,0.1157099,95291.0,95290.0,0.0027232]
[1732811188348,0.28675511,95291.0,95290.0,0.0027232]
[1732811188595,0.51779073,95291.0,95290.0,0.0027232]
[1732811188823,0.233074,95261.0,95259.0,0.000862]
[1732811189048,0.35891921,95261.0,95259.0,0.000862]
[1732811190816,0.256074,95261.0,95259.0,0.000862]
[1732811191050,0.210874,95261.0,95259.0,0.000862]
[1732811191245,0.22173838,95261.0,95260.0,0.001862]
[1732811191428,0.219874,95261.0,95260.0,0.001862]
[1732811191666,0.224874,95261.0,95260.0,0.001862]
[1732811192108,0.219874,95261.0,95260.0,0.001862]
[1732811192323,0.211874,95261.0,95260.0,0.000862]
[1732811192515,0.21373838,95261.0,95260.0,0.000862]
[1732811192729,0.22073838,95261.0,95260.0,0.000862]
[1732811192952,0.218874,95261.0,95260.0,0.000862]
[1732811194002,0.210874,95261.0,95260.0,0.000862]
[1732811194269,0.21273838,95261.0,95260.0,0.000862]
[1732811194497,0.21273838,95261.0,95260.0,0.001862]
[1732811194710,0.21273838,95261.0,95260.0,0.000862]
[1732811195138,0.21373838,95261.0,95260.0,0.000862]
[1732811195358,0.21373838,95261.0,95260.0,0.001862]
[1732811196868,0.21373838,95261.0,95260.0,0.000862]
[1732811198665,0.31471921,95261.0,95260.0,0.000862]
[1732811199156,0.36181921,95261.0,95260.0,0.000862]
[1732811200313,0.36681921,95261.0,95260.0,0.001862]
[1732811200512,0.36581921,95261.0,95260.0,0.001862]
[1732811200752,0.36581921,95261.0,95260.0,0.000862]
[1732811200753,0.36981921,95261.0,95260.0,0.000862]
[1732811201187,0.36981921,95261.0,95260.0,0.001862]
[1732811201188,0.36681921,95261.0,95260.0,0.001862]
[1732811201400,0.37581921,95261.0,95260.0,0.001862]
[1732811201609,0.36981921,95261.0,95260.0,0.000862]
[1732811202069,0.37481921,95261.0,95260.0,0.001862]
[1732811202314,0.36581921,95261.0,95260.0,0.001862]
[1732811203183,0.104974,95261.0,95260.0,0.000862]
[1732811203463,0.10683838,95261.0,95260.0,0.000862]
[1732811203674,0.10683838,95261.0,95260.0,0.001862]
[1732811203675,0.12083838,95261.0,95260.0,0.001862]
[1732811204085,0.10683838,95261.0,95260.0,0.000862]
[1732811204311,0.11483838,95261.0,95260.0,0.000862]
[1732811204524,0.11883838,95261.0,95260.0,0.000862]
[1732811204743,0.13383838,95261.0,95260.0,0.000862]
[1732811205177,0.13583838,95261.0,95260.0,0.000862]
[1732811211885,0.133974,95261.0,95260.0,0.000862]
[1732811212132,0.13583838,95261.0,95260.0,0.000862]
[1732811212537,0.13583838,95261.0,95260.0,0.00742883]
[1732811212749,0.133974,95261.0,95260.0,0.00742883]
[1732811212938,0.027,95261.0,95260.0,0.00742883]
[1732811213082,0.027,95261.0,95260.0,0.00842883]
[1732811213083,0.131974,95261.0,95260.0,0.00842883]
[1732811213517,0.13169009,95261.0,95260.0,0.00842883]
[1732811214410,0.12769009,95261.0,95260.0,0.00842883]
[1732811214826,0.12769009,95261.0,95260.0,0.00942883]
[1732811215917,0.12769009,95261.0,95260.0,0.002862]
[1732811216290,0.12769009,95261.0,95260.0,0.00942872]
[1732811216966,0.02271609,95261.0,95260.0,0.00942872]
[1732811217178,0.023,95261.0,95260.0,0.00942872]
[1732811217389,0.127974,95261.0,95260.0,0.00942872]
[1732811217614,0.00186438,95263.0,95260.0,0.00942872]
[1732811217615,0.023,95262.0,95260.0,0.00942872]
[1732811217912,0.023,95262.0,95261.0,0.00656672]
[1732811218156,0.023,95270.0,95262.0,0.209946]
[1732811218382,0.285211,95279.0,95263.0,0.00656672]
[1732811218383,0.0753,95279.0,95263.0,0.00656672]
[1732811218593,0.00272628,95278.0,95264.0,0.00656672]
[1732811218800,0.104966,95269.0,95265.0,0.00656672]
[1732811219029,0.00272628,95278.0,95267.0,0.104967]
[1732811219030,0.104963,95271.0,95267.0,0.104967]
[1732811219265,0.013686,95278.0,95268.0,0.00656672]
[1732811219266,0.00186438,95274.0,95268.0,0.00656672]
[1732811219496,0.104964,95271.0,95268.0,0.00656672]
[1732811219715,0.023,95270.0,95269.0,0.00656672]
[1732811220400,0.127964,95270.0,95269.0,0.00656672]
[1732811220611,0.130964,95270.0,95269.0,0.00656672]
[1732811221257,0.133964,95270.0,95269.0,0.00656672]
[1732811221486,0.023,95270.0,95260.0,0.000862]
[1732811221732,0.104972,95264.0,95261.0,0.00656585]
[1732811221942,0.209932,95269.0,95262.0,0.00656585]
[1732811222172,0.023,95270.0,95260.0,0.000862]
[1732811222173,0.104971,95265.0,95263.0,0.00656585]
[1732811222415,0.104971,95265.0,95260.0,0.000862]
[1732811222416,0.209931,95269.0,95264.0,0.00656585]
[1732811222640,0.209931,95269.0,95260.0,0.000862]
[1732811222641,0.104969,95266.0,95265.0,0.00656585]
[1732811222876,0.12983338,95266.0,95265.0,0.00656585]
[1732811224008,0.12983338,95266.0,95265.0,0.00756585]
[1732811224263,0.12983338,95266.0,95265.0,0.01542503]
[1732811224917,0.12983338,95266.0,95265.0,0.0075664]
[1732811225354,0.12983338,95266.0,95265.0,0.0065664]
[1732811225599,0.12983338,95266.0,95265.0,0.0085664]
[1732811226687,0.12955168,95266.0,95265.0,0.001]
[1732811227180,0.12955168,95266.0,95260.0,0.000862]
[1732811227181,0.127974,95261.0,95260.0,0.000862]
[1732811228939,0.127974,95261.0,95260.0,0.002862]
[1732811229896,0.127974,95261.0,95260.0,0.005862]
[1732811235925,0.20953838,95261.0,95260.0,0.005862]
[1732811236446,0.31051921,95261.0,95260.0,0.005862]
[1732811236679,0.31051921,95261.0,95260.0,0.003862]
[1732811237144,0.31051921,95261.0,95260.0,0.000862]
[1732811237574,0.31051921,95261.0,95260.0,0.001862]
[1732811237809,0.31051921,95261.0,95260.0,0.000862]
[1732811238268,0.31951921,95261.0,95260.0,0.002862]
[1732811238497,0.32951921,95261.0,95260.0,0.002862]
[1732811238767,0.53941921,95261.0,95260.0,0.001862]
[1732811238989,0.53941921,95261.0,95246.0,0.001724]
[1732811238990,0.41699,95247.0,95246.0,0.001724]
[1732811239234,0.51983521,95247.0,95246.0,0.001724]
[1732811239483,0.426994,95243.0,95240.0,0.0017218]
[1732811239702,0.52983921,95243.0,95240.0,0.0017218]
[1732811241102,0.53883921,95243.0,95242.0,0.0027236]
[1732811241337,0.53883921,95243.0,95242.0,0.0017236]
[1732811241794,0.297996,95241.0,95240.0,4e-07]
[1732811242012,0.52784121,95241.0,95240.0,4e-07]
[1732811243361,0.52784121,95241.0,95235.0,0.0017218]
[1732811243362,0.415902,95236.0,95235.0,8e-07]
[1732811243586,0.52874721,95236.0,95235.0,8e-07]
[1732811244007,0.274806,95232.0,95231.0,8e-07]
[1732811244225,0.52765121,95232.0,95231.0,8e-07]
[1732811245591,0.53861355,95232.0,95231.0,8e-07]
[1732811246017,0.54361355,95232.0,95231.0,0.0010008]
[1732811246718,0.54304447,95232.0,95231.0,0.0010008]
[1732811246930,0.55204447,95232.0,95231.0,0.0010008]
[1732811247362,0.55204447,95232.0,95231.0,8e-07]
[1732811247861,0.55204447,95232.0,95215.0,0.0017218]
[1732811247862,0.666324,95216.0,95215.0,6e-07]
[1732811248074,0.666324,95216.0,95194.0,0.0017238]
[1732811248075,0.42735692,95214.0,95213.0,4e-07]
[1732811248309,0.53020213,95214.0,95213.0,4e-07]
[1732811249498,0.29745892,95212.0,95211.0,4e-07]
[1732811249734,0.48230413,95212.0,95211.0,4e-07]
[1732811250897,0.49130413,95212.0,95211.0,4e-07]
[1732811251825,0.49130413,95212.0,95194.0,8e-07]
[1732811251826,0.412847,95195.0,95194.0,8e-07]
[1732811252048,0.51569221,95195.0,95194.0,8e-07]
[1732811253414,0.54046434,95195.0,95194.0,8e-07]
[1732811253633,0.54946434,95195.0,95194.0,8e-07]
[1732811253877,0.56221681,95195.0,95194.0,8e-07]
[1732811254090,0.57021681,95195.0,95194.0,8e-07]
[1732811254583,0.56221681,95195.0,95194.0,8e-07]
[1732811254823,0.52744468,95195.0,95194.0,8e-07]
[1732811255036,0.53444468,95195.0,95194.0,8e-07]
[1732811257120,0.62674561,95195.0,95194.0,8e-07]
[1732811257335,0.63574561,95195.0,95194.0,8e-07]
[1732811257580,0.64274561,95195.0,95194.0,8e-07]
[1732811257842,0.64274561,95195.0,95156.0,0.0465]
[1732811257843,0.29747892,95194.0,95193.0,6e-07]
[1732811258079,0.48172413,95194.0,95193.0,6e-07]
[1732811258300,0.58455559,95194.0,95193.0,6e-07]
[1732811258523,0.44872413,95194.0,95193.0,6e-07]
[1732811259222,0.46572413,95194.0,95193.0,6e-07]
[1732811259933,0.48872413,95194.0,95193.0,6e-07]
[1732811260392,0.47229321,95194.0,95193.0,6e-07]
[1732811260638,0.38989321,95194.0,95193.0,6e-07]
[1732811260881,0.121048,95194.0,95193.0,6e-07]
[1732811261139,0.025,95194.0,95193.0,0.10561868]